bitfinex/quotes_ETHUSD_20241023
["timestamp","ask_amount","ask_price","bid_price","bid_amount"]
[1729691565001,3.87387,2581.4,2581.0,3.87443]
[1729691565325,3.87387,2581.4,2580.9,3.87448]
[1729691565508,3.87387,2581.4,2581.0,3.93251297]
[1729691565706,3.87387,2581.4,2581.0,0.05811297]
[1729691565926,3.51784441,2581.6,2581.0,0.05811297]
[1729691566141,3.87393,2581.4,2581.0,3.93251297]
[1729691566305,3.87416,2581.3,2581.0,0.05811297]
[1729691566508,3.87416,2581.2,2581.0,0.05811297]
[1729691567010,3.87447,2581.0,2580.6,4.6741]
[1729691567457,3.87465,2580.9,2580.6,0.7991]
[1729691568102,0.05394719,2580.8,2580.6,0.7991]
[1729691568847,7.74913,2581.0,2580.6,0.7991]
[1729691569047,0.05394719,2580.7,2580.6,0.7991]
[1729691569362,0.05394719,2580.7,2580.6,1.2723346]
[1729691569641,14.0913,2581.8,2580.6,1.2723346]
[1729691569642,10.218,2581.8,2581.4,0.8185]
[1729691569805,4.63647,2582.0,2581.4,0.8185]
[1729691570145,3.87298,2582.0,2581.5,3.87361]
[1729691570439,0.05204323,2581.9,2581.5,3.87361]
[1729691570644,3.92516323,2581.9,2581.5,3.87361]
[1729691571299,0.05204323,2581.9,2581.5,3.87361]
[1729691571744,3.92524323,2581.9,2581.5,3.87361]
[1729691572425,3.92524323,2581.9,2581.5,4.73021]
[1729691572743,0.05204323,2581.9,2581.5,0.8566]
[1729691572941,3.92524323,2581.9,2581.4,4.69221]
[1729691573143,3.87338,2581.8,2581.4,0.8185]
[1729691573377,0.05080914,2581.7,2581.4,4.69228]
[1729691573672,3.87342,2581.7,2581.4,0.8185]
[1729691573875,3.87379,2581.5,2581.4,0.05810412]
[1729691574339,0.05080914,2581.5,2581.4,0.05810412]
[1729691574555,7.74702,2581.7,2581.4,0.05810412]
[1729691574757,0.05080914,2581.6,2581.4,0.05810412]
[1729691574975,3.92443914,2581.6,2581.4,0.05810412]
[1729691575291,3.87371,2581.5,2581.4,0.05810412]
[1729691575855,3.92451914,2581.5,2581.4,0.05810412]
[1729691576080,0.05080914,2581.5,2581.1,0.8061]
[1729691576284,3.87409,2581.3,2581.1,0.8061]
[1729691576596,3.87426,2581.2,2580.9,0.796]
[1729691576758,3.92506914,2581.2,2580.9,0.796]
[1729691577312,3.92506914,2581.2,2580.6,3.87496]
[1729691577313,0.05080914,2581.2,2580.6,3.87496]
[1729691577468,0.05080914,2581.2,2580.7,0.796]
[1729691577469,3.87439,2581.1,2580.7,0.796]
[1729691577809,0.05066118,2581.0,2580.7,0.796]
[1729691577962,3.92514118,2581.0,2580.7,0.796]
[1729691578167,0.05066118,2581.0,2580.7,4.67083]
[1729691579108,0.05066118,2581.0,2580.8,0.8258]
[1729691579308,0.05066118,2581.0,2580.9,3.87461]
[1729691579466,3.87416,2581.2,2580.9,0.470041]
[1729691579669,3.51784441,2581.6,2580.8,0.8258]
[1729691579670,0.05048677,2581.0,2580.8,0.8258]
[1729691579869,3.87432,2581.1,2580.8,0.8258]
[1729691580070,0.05048677,2580.9,2580.8,0.8258]
[1729691580269,3.87446,2581.0,2580.6,1.22609082]
[1729691580595,0.05048677,2580.9,2580.8,3.87476]
[1729691580909,7.74783,2581.4,2580.9,4.7003]
[1729691581071,3.87388,2581.4,2580.9,4.7003]
[1729691581404,3.87388,2581.4,2580.9,0.8258]
[1729691581578,3.8741,2581.3,2580.9,4.70033]
[1729691581789,3.87379,2581.5,2581.0,3.93256892]
[1729691582109,3.87268,2582.2,2581.7,3.87339]
[1729691582316,3.87311,2581.9,2581.8,0.7905]
[1729691582482,3.87368,2581.6,2581.2,0.86031387]
[1729691582686,3.87334,2581.8,2581.3,3.874]
[1729691583210,3.87334,2581.8,2581.2,0.7905]
[1729691583211,0.04884627,2581.7,2581.2,0.7905]
[1729691583420,0.04884627,2581.7,2581.2,1.31734897]
[1729691583616,3.87357,2581.6,2581.2,5.19142897]
[1729691584119,3.87364,2581.6,2581.2,1.31734897]
[1729691584270,0.04884627,2581.5,2581.2,0.7905]
[1729691584612,0.04884627,2581.5,2581.2,4.66466]
[1729691584967,3.87343,2581.7,2581.2,4.66466]
[1729691585276,0.04884627,2581.6,2581.2,4.66466]
[1729691586174,3.92245627,2581.6,2581.2,4.66466]
[1729691586375,0.04884627,2581.6,2581.2,0.7905]
[1729691586817,3.87372,2581.5,2581.2,0.7905]
[1729691586976,3.87396,2581.4,2581.2,0.7905]
[1729691587514,0.04884627,2581.3,2581.2,0.7905]
[1729691587810,3.87358,2581.6,2581.2,0.7905]
[1729691588016,0.0490471,2581.3,2581.2,0.7905]
[1729691588184,3.87343,2581.7,2581.2,5.13686189]
[1729691588389,0.0490471,2581.3,2581.2,5.13686189]
[1729691588588,3.87343,2581.7,2581.2,5.13686189]
[1729691588920,0.0490471,2581.6,2581.3,3.87401]
[1729691589219,3.87329,2581.8,2581.4,3.87379]
[1729691589373,0.0490471,2581.5,2581.3,3.87401]
[1729691589576,3.87346,2581.7,2581.3,3.87401]
[1729691589779,0.0490471,2581.6,2581.3,3.87401]
[1729691590014,6.87303,2582.0,2581.5,4.68831]
[1729691590318,3.87318,2581.9,2581.5,4.68831]
[1729691590485,3.87318,2581.9,2581.5,0.8146]
[1729691590687,3.87334,2581.8,2581.5,0.8146]
[1729691590887,3.87341,2581.7,2581.5,0.8146]
[1729691591613,3.87334,2581.8,2581.5,0.8146]
[1729691591811,3.87343,2581.7,2581.5,0.8146]
[1729691592208,3.87343,2581.7,2581.6,0.05809926]
[1729691593014,3.0,2582.0,2581.6,0.05809926]
[1729691593348,3.51784441,2582.1,2581.6,0.05809926]
[1729691593349,3.87291,2582.1,2581.6,3.93157926]
[1729691593772,3.87291,2582.1,2581.6,0.05809926]
[1729691593977,3.87304,2582.0,2581.6,3.93164926]
[1729691594176,3.87311,2581.9,2581.6,0.05809926]
[1729691594385,3.51784441,2582.2,2581.6,0.05809926]
[1729691594386,3.87326,2581.8,2581.6,0.05809926]
[1729691594603,3.87341,2581.7,2581.6,0.05809926]
[1729691598296,0.04908407,2581.7,2581.6,0.05809926]
[1729691598720,3.87341,2581.7,2581.3,4.6825]
[1729691598925,3.87356,2581.6,2581.3,0.8085]
[1729691599231,3.87378,2581.5,2581.3,0.8085]
[1729691599530,3.87408,2581.3,2581.0,0.88930892]
[1729691599825,3.87409,2581.3,2581.0,0.88930892]
[1729691600032,0.04908407,2581.2,2581.0,0.88930892]
[1729691600201,3.92326407,2581.2,2581.0,0.88930892]
[1729691601095,0.04908407,2581.2,2581.0,0.88930892]
[1729691601519,3.87403,2581.3,2581.0,0.88930892]
[1729691601733,0.04926906,2581.1,2581.0,0.88930892]
[1729691601902,3.87431,2581.1,2581.0,0.05810892]
[1729691602230,7.44142347,2581.1,2581.0,0.05810892]
[1729691602590,3.87478,2580.8,2580.6,0.8312]
[1729691602932,0.04904712,2580.7,2580.4,0.8312]
[1729691603098,3.92402712,2580.7,2580.4,0.8312]
[1729691603300,3.87498,2580.7,2580.4,0.8312]
[1729691603519,0.04890969,2580.6,2580.4,0.8312]
[1729691603730,0.04890969,2580.6,2580.5,0.0581202]
[1729691603932,3.92396969,2580.6,2580.5,0.0581202]
[1729691604756,3.92396969,2580.6,2580.0,1.8312]
[1729691604757,3.87581,2580.1,2580.0,1.0]
[1729691605254,3.92428626,2580.1,2580.0,1.0]
[1729691605931,0.04847626,2580.1,2580.0,1.0]
[1729691606124,2.80427626,2580.5,2580.0,1.0]
[1729691606454,3.87578,2580.2,2580.0,1.0]
[1729691606663,3.87577,2580.2,2580.0,1.0]
[1729691607021,0.04661186,2580.1,2580.0,1.0]
[1729691607352,3.92242186,2580.1,2580.0,1.0]
[1729691609056,0.04661186,2580.1,2580.0,1.0]
[1729691609259,3.92242186,2580.1,2580.0,1.0]
[1729691609442,3.87581,2580.1,2580.0,1.0]
[1729691609615,3.92204639,2580.1,2580.0,1.0]
[1729691611345,6.92204639,2580.1,2580.0,1.0]
[1729691611546,7.51838274,2580.1,2580.0,1.0]
[1729691611782,21.25422715,2580.1,2580.0,1.0]
[1729691611945,17.73638274,2580.1,2580.0,1.0]
[1729691612487,17.14004639,2580.1,2580.0,1.0]
[1729691612653,20.6578908,2580.1,2580.0,1.0]
[1729691612977,17.15004639,2580.1,2580.0,1.0]
[1729691613276,10.4598908,2580.1,2580.0,1.0]
[1729691613576,10.4398908,2580.1,2580.0,1.0]
[1729691614479,7.4398908,2580.1,2580.0,1.0]
[1729691615035,3.92204639,2580.1,2580.0,1.0]
[1729691615240,0.04623639,2580.1,2580.0,1.0]
[1729691615474,0.04623639,2580.1,2580.0,1.564636]
[1729691615676,3.87558,2580.3,2580.0,1.564636]
[1729691615877,3.92007154,2580.1,2580.0,1.564636]
[1729691616040,3.8756,2580.3,2580.0,1.0]
[1729691616239,0.04426684,2580.1,2580.0,1.0]
[1729691616469,3.87566,2580.2,2580.0,1.0]
[1729691616674,0.04426684,2580.1,2580.0,1.0]
[1729691617941,0.04461639,2580.1,2580.0,1.0]
[1729691618174,10.218,2581.2,2580.0,2.33748071]
[1729691618383,10.218,2581.2,2580.3,0.7593]
[1729691618384,3.87502,2580.7,2580.3,0.7593]
[1729691618592,7.75004,2580.7,2580.3,0.7593]
[1729691618766,0.04461639,2580.6,2580.3,0.7593]
[1729691618973,0.04461639,2580.6,2580.3,1.610375]
[1729691619284,3.91969639,2580.6,2580.3,1.610375]
[1729691619796,7.39307441,2580.5,2580.3,0.7593]
[1729691620001,3.87536,2580.4,2580.1,0.8173]
[1729691620157,0.04471699,2580.3,2580.1,0.8173]
[1729691620364,0.04471699,2580.3,2580.1,1.774228]
[1729691620558,0.04471699,2580.3,2580.1,5.650018]
[1729691620803,3.87547,2580.4,2580.1,1.774228]
[1729691620973,3.8753,2580.5,2580.1,0.8173]
[1729691620974,0.04471699,2580.3,2580.1,0.8173]
[1729691621302,3.87519,2580.6,2580.1,4.69307]
[1729691621501,0.04471699,2580.2,2580.1,4.69307]
[1729691621801,3.87473,2580.9,2580.4,3.87529]
[1729691621959,0.04471699,2580.8,2580.4,3.87529]
[1729691622172,0.04471699,2580.8,2580.5,4.6902]
[1729691622380,7.74857,2581.2,2580.7,3.87491]
[1729691622578,0.04471699,2581.1,2580.8,3.87469]
[1729691622773,3.87408,2581.3,2580.9,0.815]
[1729691622978,0.04471699,2581.2,2580.9,0.815]
[1729691623280,3.87401,2581.3,2580.9,0.815]
[1729691623505,0.04471699,2581.1,2580.9,0.815]
[1729691623708,3.8739,2581.4,2580.9,4.68957]
[1729691624018,3.87366,2581.6,2581.1,3.87428]
[1729691624339,3.91844699,2581.5,2581.1,0.857405]
[1729691624618,7.74815,2581.3,2581.0,0.8252]
[1729691624780,3.87402,2581.3,2581.0,0.8252]
[1729691624980,0.04471699,2581.2,2581.0,0.8252]
[1729691625196,3.87425,2581.2,2580.7,4.69997]
[1729691625398,3.87402,2581.3,2580.8,0.857503]
[1729691625399,3.91910699,2581.1,2580.8,0.857503]
[1729691625615,3.91910699,2581.1,2580.7,0.8252]
[1729691626382,0.04471699,2581.1,2580.7,4.7001]
[1729691627613,0.04471699,2581.1,2580.7,0.8252]
[1729691627816,18.58889528,2581.8,2580.7,0.8252]
[1729691627817,3.87411,2581.3,2580.8,3.87466]
[1729691628125,3.91887699,2581.2,2580.8,3.87466]
[1729691628321,0.04471699,2581.2,2580.8,4.732151]
[1729691628813,0.04471699,2581.1,2580.8,4.732151]
[1729691629021,3.87403,2581.3,2580.8,4.732151]
[1729691629208,0.04471699,2581.2,2580.8,4.732151]
[1729691629390,3.87403,2581.3,2580.9,0.5557351]
[1729691629594,0.04471699,2581.2,2580.9,0.5557351]
[1729691629922,3.8742,2581.2,2580.9,0.5557351]
[1729691630121,0.04471699,2581.1,2580.9,0.5557351]
[1729691630424,3.87403,2581.3,2580.9,0.5557351]
[1729691630623,0.04471699,2581.2,2581.0,0.05811312]
[1729691630782,3.87403,2581.3,2581.0,0.05811312]
[1729691630982,0.04471699,2581.2,2581.0,0.05811312]
[1729691631297,3.87394,2581.4,2581.1,0.7664]
[1729691631703,6.87347,2581.7,2581.1,0.7664]
[1729691631910,3.87416,2581.2,2581.0,0.05811312]
[1729691632623,6.87342,2581.7,2581.1,3.87424]
[1729691632929,3.87312,2581.9,2581.4,3.87377]
[1729691633122,3.87312,2581.9,2581.4,7.74755]
[1729691633504,3.87312,2581.9,2581.4,3.87377]
[1729691633890,3.0,2581.9,2581.3,4.68912]
[1729691634088,3.87313,2581.9,2581.3,4.68912]
[1729691634393,3.87344,2581.7,2581.3,4.68912]
[1729691634596,7.74699,2581.7,2581.3,0.8152]
[1729691634896,3.87344,2581.7,2581.3,0.8152]
[1729691635418,3.87367,2581.6,2581.3,0.8152]
[1729691636121,7.74736,2581.6,2581.3,0.8152]
[1729691636292,3.87326,2581.8,2581.3,0.8152]
[1729691636505,3.87348,2581.7,2581.3,0.8152]
[1729691636682,3.87359,2581.6,2581.3,0.8152]
[1729691637449,3.87323,2581.9,2581.3,0.8152]
[1729691637613,3.87343,2581.7,2581.3,0.8152]
[1729691637939,7.74693,2581.7,2581.3,0.8152]
[1729691638144,3.87343,2581.7,2581.3,0.8152]
[1729691638348,3.87358,2581.6,2581.3,0.8152]
[1729691638851,3.87326,2581.8,2581.3,0.8152]
[1729691639021,4.49754528,2581.9,2581.1,0.7932]
[1729691639209,3.0,2582.1,2581.1,0.7932]
[1729691639210,3.87395,2581.4,2581.1,0.7932]
[1729691639921,3.87394,2581.4,2581.1,0.7932]
[1729691640852,3.87402,2581.3,2581.1,0.7932]
[1729691641010,3.87402,2581.3,2581.0,0.05811312]
[1729691641211,3.87388,2581.4,2581.0,0.05811312]
[1729691641431,3.87401,2581.3,2581.0,0.05811312]
[1729691642349,3.87431,2581.1,2581.0,0.05811312]
[1729691643327,3.91856857,2581.1,2581.0,0.05811312]
[1729691644047,0.04425857,2581.1,2581.0,0.05811312]
[1729691645114,0.04425857,2581.1,2581.0,0.88241312]
[1729691645453,3.87399,2581.4,2581.0,5.24031251]
[1729691645751,3.87399,2581.4,2581.0,4.75687312]
[1729691645752,0.04405752,2581.1,2581.0,4.75687312]
[1729691645940,3.87374,2581.5,2581.0,4.75687312]
[1729691646117,0.04405752,2581.1,2581.0,4.75687312]
[1729691646317,3.87374,2581.5,2581.0,4.75687312]
[1729691646670,3.87321,2581.9,2581.0,4.75687312]
[1729691646671,3.87261,2582.3,2581.7,0.7547]
[1729691646830,3.87282,2582.1,2581.7,4.62811]
[1729691647933,3.87282,2582.1,2581.7,4.62803]
[1729691648124,3.87262,2582.3,2581.8,3.87319]
[1729691648125,3.8726,2582.3,2581.8,3.87319]
[1729691648328,3.87273,2582.2,2581.8,7.74637]
[1729691648546,3.87273,2582.2,2581.8,3.87318]
[1729691648865,3.87253,2582.3,2581.8,7.74638]
[1729691649031,3.87224,2582.5,2581.9,0.07745894]
[1729691649229,3.87224,2582.5,2582.0,3.87285]
[1729691649565,3.87237,2582.4,2582.0,3.87285]
[1729691650247,3.87237,2582.4,2581.7,0.81279834]
[1729691650556,3.87237,2582.4,2581.9,3.87304]
[1729691650851,3.87269,2582.2,2581.8,3.87326]
[1729691651324,3.87269,2582.2,2581.8,3.87319]
[1729691651524,3.87253,2582.3,2581.9,3.87309]
[1729691651946,3.87268,2582.2,2581.7,8.55949834]
[1729691652148,3.87268,2582.2,2581.8,3.87326]
[1729691652517,3.87283,2582.1,2581.7,4.68611834]
[1729691653052,7.74546,2582.2,2581.7,4.68612834]
[1729691653558,3.87286,2582.1,2581.7,4.68612834]
[1729691653921,3.87268,2582.2,2581.7,1.66878117]
[1729691654254,3.87306,2582.0,2581.7,0.81279834]
[1729691654456,3.87326,2581.8,2581.7,0.05809834]
[1729691656933,3.87326,2581.8,2581.2,0.7929]
[1729691657120,3.87416,2581.2,2580.9,0.8183]
[1729691657324,3.87395,2581.4,2580.9,0.8183]
[1729691657755,3.87416,2581.2,2580.9,0.8183]
[1729691658061,3.87402,2581.3,2580.9,0.8183]
[1729691658255,0.0402532,2581.1,2580.9,0.8183]
[1729691658461,3.87402,2581.3,2580.9,0.8183]
[1729691658664,3.87395,2581.4,2580.9,0.8183]
[1729691658665,0.04007844,2581.0,2580.9,0.8183]
[1729691658837,3.87418,2581.2,2580.9,0.8183]
[1729691659042,0.04007844,2581.1,2580.9,0.8183]
[1729691659792,3.0,2581.8,2581.1,7.74854]
[1729691659793,3.87358,2581.6,2581.1,7.74854]
[1729691659976,3.0,2581.8,2581.3,0.7881]
[1729691660127,3.87331,2581.8,2581.4,3.87378]
[1729691660471,3.8735,2581.7,2581.3,0.7881]
[1729691660673,3.51444973,2581.9,2581.3,0.7881]
[1729691660840,3.87373,2581.5,2581.2,0.05810212]
[1729691661046,7.74756,2581.5,2581.2,0.05810212]
[1729691661359,3.87373,2581.5,2581.2,0.05810212]
[1729691662736,3.0,2582.0,2581.2,4.48169152]
[1729691662930,3.0,2582.0,2581.2,4.40421233]
[1729691663130,3.87351,2581.7,2581.2,4.40421233]
[1729691664312,3.87319,2581.9,2581.4,0.8109]
[1729691664467,3.87319,2581.9,2581.4,5.21394061]
[1729691664914,6.87261,2582.3,2581.7,3.87334]
[1729691665209,3.87274,2582.2,2581.8,0.07745936]
[1729691665407,3.8723,2582.5,2582.0,4.6276]
[1729691665712,3.8723,2582.5,2582.1,3.87279]
[1729691665877,3.8723,2582.5,2582.0,4.6276]
[1729691666213,3.87246,2582.4,2582.0,0.7547]
[1729691666423,3.8723,2582.5,2582.1,0.05808687]
[1729691666927,4.4777596,2583.0,2582.5,3.87214]
[1729691667221,3.87132,2583.1,2582.6,3.9494122]
[1729691667375,3.87153,2583.0,2582.5,3.87214]
[1729691667575,7.74311,2583.0,2582.6,0.07743297]
[1729691667891,3.87189,2582.8,2582.4,0.7816]
[1729691668718,3.87208,2582.6,2582.4,0.7816]
[1729691669006,3.87207,2582.6,2582.4,0.7816]
[1729691669212,3.87221,2582.5,2582.1,0.84108687]
[1729691669570,3.87237,2582.4,2582.1,0.84108687]
[1729691670170,3.87221,2582.5,2582.1,0.84108687]
[1729691671208,3.87221,2582.5,2582.1,4.71387687]
[1729691671398,3.87221,2582.5,2582.1,0.84108687]
[1729691671596,7.74452,2582.5,2582.1,0.84108687]
[1729691671778,3.87221,2582.5,2582.1,0.84108687]
[1729691672278,7.74454,2582.5,2582.1,0.84108687]
[1729691672607,3.87221,2582.5,2582.1,0.84108687]
[1729691672973,4.49377793,2582.7,2582.1,0.84108687]
[1729691673294,6.87151,2583.0,2582.1,0.05808687]
[1729691673295,3.87266,2582.2,2582.1,0.05808687]
[1729691673485,3.87298,2582.0,2581.5,0.8138]
[1729691673685,3.87311,2581.9,2581.5,1.33548806]
[1729691673974,3.91054228,2581.8,2581.5,1.33548806]
[1729691674199,0.03716228,2581.8,2581.5,0.8138]
[1729691674401,3.87336,2581.8,2581.5,0.8138]
[1729691674670,0.03703514,2581.7,2581.5,0.8138]
[1729691675103,3.87336,2581.8,2581.5,0.8138]
[1729691675305,0.03703514,2581.6,2581.5,0.8138]
[1729691677285,3.87375,2581.5,2581.3,0.7847]
[1729691677493,3.91059514,2581.6,2581.3,0.7847]
[1729691677689,3.87356,2581.6,2581.3,0.7847]
[1729691677889,0.03703514,2581.5,2581.3,0.7847]
[1729691678750,0.03703514,2581.5,2581.2,0.05810212]
[1729691678751,3.87401,2581.3,2581.2,0.05810212]
[1729691679320,3.91104514,2581.3,2581.2,0.05810212]
[1729691679911,3.87476,2580.8,2580.4,0.7505]
[1729691680137,3.87476,2580.8,2580.5,0.462592]
[1729691680348,0.03637808,2580.7,2580.5,0.462592]
[1729691680709,3.0,2581.3,2580.4,4.7032587]
[1729691680949,3.87471,2580.9,2580.5,0.0581156]
[1729691681330,3.87478,2580.8,2580.5,0.0581156]
[1729691681527,3.0,2581.3,2580.5,0.0581156]
[1729691681725,3.87506,2580.6,2580.5,0.0581156]
[1729691682160,3.87506,2580.6,2580.1,0.8062]
[1729691682161,3.87562,2580.3,2580.1,0.8062]
[1729691682462,4.53000227,2580.6,2580.0,1.0]
[1729691682463,3.87566,2580.2,2580.0,1.0]
[1729691682624,0.03622434,2580.1,2580.0,1.0]
[1729691683061,3.8755,2580.4,2580.0,1.0]
[1729691683252,3.87579,2580.2,2580.0,1.0]
[1729691683452,0.03575251,2580.1,2580.0,1.0]
[1729691684340,3.87553,2580.3,2580.0,1.0]
[1729691684341,3.87567,2580.2,2580.0,1.0]
[1729691684673,0.03575251,2580.1,2580.0,1.0]
[1729691684960,0.03575251,2580.1,2580.0,1.57404916]
[1729691685158,3.8754,2580.4,2580.0,5.45000916]
[1729691685367,0.03575251,2580.1,2580.0,5.45000916]
[1729691685581,3.8754,2580.4,2580.0,5.45000916]
[1729691685727,0.03575251,2580.1,2580.0,5.45000916]
[1729691685927,3.87523,2580.5,2580.0,5.45000916]
[1729691686178,0.03575251,2580.1,2580.0,5.45000916]
[1729691686773,3.87523,2580.5,2580.0,5.45000916]
[1729691686977,0.03575251,2580.1,2580.0,5.45000916]
[1729691687276,7.75054,2580.5,2580.0,5.45000916]
[1729691687572,3.87523,2580.5,2580.0,5.50814077]
[1729691687745,0.03575251,2580.4,2580.3,0.7838]
[1729691688150,3.87501,2580.7,2580.3,0.7838]
[1729691688352,0.03575251,2580.4,2580.3,0.7838]
[1729691688574,3.87507,2580.6,2580.3,0.7838]
[1729691688739,0.03575251,2580.4,2580.1,0.93842508]
[1729691688944,3.87533,2580.5,2580.1,0.93842508]
[1729691689169,0.03575251,2580.3,2580.1,0.93842508]
[1729691689343,3.8755,2580.4,2580.1,0.93842508]
[1729691689546,3.8755,2580.4,2580.0,1.88683161]
[1729691689547,0.03575251,2580.2,2580.0,1.88683161]
[1729691689895,0.03575251,2580.1,2580.0,1.88683161]
[1729691690435,7.75096,2580.4,2580.0,1.88683161]
[1729691690653,0.03575251,2580.3,2580.0,1.8287]
[1729691691140,3.87519,2580.6,2580.1,3.87581]
[1729691691341,3.87519,2580.6,2580.1,4.446181]
[1729691691342,0.03575251,2580.2,2580.1,4.446181]
[1729691691540,3.87519,2580.6,2580.1,8.321931]
[1729691691736,3.87519,2580.6,2580.1,4.446181]
[1729691691737,0.03575251,2580.2,2580.1,4.446181]
[1729691691937,3.87515,2580.6,2580.1,0.570451]
[1729691692176,0.03575251,2580.2,2580.1,0.570451]
[1729691692377,3.0,2580.7,2580.1,4.446261]
[1729691692588,0.03575251,2580.2,2580.1,4.446261]
[1729691692737,3.87508,2580.6,2580.1,4.446261]
[1729691692944,0.03575251,2580.2,2580.1,4.446261]
[1729691693140,3.87508,2580.6,2580.1,0.570451]
[1729691693450,3.87529,2580.5,2580.1,0.570451]
[1729691693709,3.91114251,2580.4,2580.1,0.570451]
[1729691697955,3.87552,2580.3,2580.0,1.88683621]
[1729691698114,3.91107098,2580.3,2580.0,1.88683621]
[1729691698749,3.87567,2580.2,2580.0,1.88683621]
[1729691699059,0.03555098,2580.1,2580.0,1.05813621]
[1729691700212,3.87553,2580.3,2580.0,1.05813621]
[1729691700213,3.87553,2580.3,2580.0,1.55155983]
[1729691700419,0.03555098,2580.1,2580.0,1.05813621]
[1729691700618,3.87554,2580.3,2580.0,1.05813621]
[1729691700825,0.03555098,2580.1,2580.0,1.05813621]
[1729691701030,0.03555098,2580.1,2580.0,1.0]
[1729691701355,3.91136098,2580.1,2580.0,1.0]
[1729691702748,3.91136098,2580.1,2580.0,1.05813441]
[1729691703051,0.03555098,2580.1,2580.0,1.0]
[1729691703511,0.03555098,2580.1,2580.0,1.05813511]
[1729691707247,0.03555098,2580.1,2580.0,1.93918162]
[1729691707562,0.03512139,2580.1,2580.0,5.81499162]
[1729691707758,0.03512139,2580.1,2580.0,6.68300147]
[1729691708073,3.0,2580.7,2580.2,3.87559]
[1729691708074,3.87507,2580.6,2580.2,3.87559]
[1729691708273,3.87507,2580.6,2580.3,0.387559]
[1729691708448,0.03498874,2580.5,2580.3,0.387559]
[1729691709132,3.87507,2580.6,2580.3,0.387559]
[1729691709330,7.75022,2580.6,2580.3,0.387559]
[1729691709677,3.87539,2580.4,2580.1,0.06997574]
[1729691709879,3.87566,2580.2,2580.0,1.12811085]
[1729691710175,3.87566,2580.2,2580.0,1.05813511]
[1729691710176,0.03507362,2580.1,2580.0,1.05813511]
[1729691711075,3.87531,2580.5,2580.0,1.05813511]
[1729691711230,3.87499,2580.7,2580.2,3.87559]
[1729691711572,3.87478,2580.8,2580.3,0.462969]
[1729691711776,3.91013362,2580.6,2580.2,3.94564981]
[1729691711977,0.03507362,2580.6,2580.3,3.953015]
[1729691712144,3.87438,2581.1,2580.6,3.87499]
[1729691712571,3.87398,2581.4,2580.7,3.87485]
[1729691712773,3.87417,2581.2,2580.8,4.64378]
[1729691713101,3.87417,2581.2,2580.8,4.64382]
[1729691713303,3.87402,2581.3,2580.8,4.64382]
[1729691713800,3.87416,2581.2,2580.8,4.64382]
[1729691714188,3.87386,2581.4,2580.8,8.51846]
[1729691714494,3.87386,2581.4,2580.8,4.64374]
[1729691714876,7.74785,2581.4,2580.8,4.64374]
[1729691715183,3.0,2581.5,2580.9,3.8746]
[1729691715386,7.74732,2581.6,2581.0,3.87439]
[1729691715586,3.87372,2581.5,2581.0,3.87439]
[1729691716409,3.87388,2581.4,2580.9,3.8746]
[1729691717260,3.87403,2581.3,2580.8,4.64376]
[1729691717697,3.8742,2581.2,2580.8,0.7691]
[1729691718009,3.51756673,2581.3,2580.7,0.0581199]
[1729691718304,3.90972156,2581.2,2580.7,3.9329599]
[1729691720286,0.03556156,2581.2,2580.8,3.87466]
[1729691720488,3.87418,2581.2,2580.8,3.87466]
[1729691720718,0.03556156,2581.1,2580.8,3.87466]
[1729691722108,0.03556156,2581.0,2580.8,3.87466]
[1729691722279,0.03556156,2581.0,2580.9,3.87461]
[1729691722480,7.39134673,2581.5,2581.1,3.87423]
[1729691722714,3.0,2581.5,2581.2,3.87415]
[1729691722879,3.87359,2581.6,2581.1,4.62939]
[1729691723304,10.218,2581.7,2581.1,1.26717017]
[1729691723620,10.218,2581.7,2581.5,3.8737]
[1729691723778,3.87307,2582.0,2581.4,3.87384]
[1729691723982,3.87326,2581.8,2581.4,3.87384]
[1729691724615,3.87326,2581.8,2581.4,3.93194543]
[1729691726404,3.87326,2581.8,2581.4,0.05810543]
[1729691726916,3.0,2582.0,2581.6,4.67754]
[1729691727419,3.0,2582.1,2581.7,3.8734]
[1729691727639,3.0,2582.1,2581.7,7.74673]
[1729691727804,3.0,2582.1,2581.7,3.87333]
[1729691727998,3.87282,2582.1,2581.7,3.87333]
[1729691728411,3.0,2582.0,2581.7,3.87333]
[1729691728635,6.87273,2582.2,2581.7,3.87333]
[1729691728838,3.0,2582.0,2581.6,4.67755]
[1729691729044,3.0,2582.0,2581.6,5.60163316]
[1729691729335,3.0,2582.0,2581.6,1.72808316]
[1729691729526,3.0,2582.0,2581.7,3.8734]
[1729691729727,3.0,2582.0,2581.6,1.72808316]
[1729691730034,7.74605,2582.0,2581.6,1.72808316]
[1729691730237,3.87315,2581.9,2581.6,1.72808316]
[1729691730804,3.87348,2581.7,2581.4,0.84570543]
[1729691731035,3.87348,2581.7,2581.4,0.05810543]
[1729691731540,10.39048673,2582.1,2581.4,0.05810543]
[1729691731717,10.39048673,2582.1,2581.6,0.7876]
[1729691731718,3.87312,2581.9,2581.6,0.7876]
[1729691732037,3.87327,2581.8,2581.6,0.7876]
[1729691732411,3.87341,2581.7,2581.4,0.05810543]
[1729691732604,3.87341,2581.7,2581.4,0.85170543]
[1729691733203,0.03517355,2581.6,2581.4,0.85170543]
[1729691734925,0.03517355,2581.6,2581.4,5.58547097]
[1729691734926,0.03390008,2581.6,2581.4,5.58547097]
[1729691735139,6.87294,2582.1,2581.5,3.87371]
[1729691735140,3.87304,2582.0,2581.5,3.87371]
[1729691735339,0.0351311,2581.9,2581.5,3.87371]
[1729691735653,3.9082911,2581.9,2581.5,3.87371]
[1729691737051,0.0351311,2581.9,2581.5,3.87371]
[1729691737253,0.0351311,2581.9,2581.5,0.9459181]
[1729691737571,3.0,2582.1,2581.7,3.87334]
[1729691737727,0.0351311,2581.8,2581.7,3.87334]
[1729691738056,6.87282,2582.1,2581.7,3.87334]
[1729691738425,0.0351311,2582.0,2581.7,3.87334]
[1729691738661,0.0351311,2582.0,2581.9,4.66601]